fUSD/lending_fUSD_20250702
["ID","MTS","AMOUNT","RATE_DAILY","PERIOD"]
[369083316,1751461850655,-485.37,0.00032876,12]
[369083317,1751461850664,-490.0,0.00032876,12]
[369083318,1751461850675,-570.37,0.00032876,12]
[369083319,1751461850685,-2777.15,0.00032876,12]
[369083320,1751461850695,-460.0,0.00032876,12]
[369083321,1751461850706,-614.18,0.00032876,12]
[369083322,1751461850716,-6187.21,0.00032876,12]
[369083323,1751461850726,-490.0,0.00032876,12]
[369083324,1751461850736,-1192.74,0.00032876,12]
[369083325,1751461850747,-1187.18,0.00032876,12]
[369083326,1751461850757,-460.0,0.00032876,12]
[369083327,1751461850767,-460.0,0.00032876,12]
[369083328,1751461850776,-460.0,0.00032876,12]
[369083329,1751461850786,-1261.29,0.00032876,12]
[369083330,1751461850796,-460.0,0.00032876,12]
[369083331,1751461850806,-460.0,0.00032876,12]
[369083332,1751461850816,-460.0,0.00032876,12]
[369083333,1751461850826,-1503.48,0.00032876,12]
[369083334,1751461850836,-460.0,0.00032876,12]
[369083335,1751461850846,-1121.79,0.00032876,12]
[369083336,1751461850857,-846.63,0.00032876,12]
[369083337,1751461850867,-552.89,0.00032876,12]
[369083338,1751461850879,-2349.24,0.00032876,12]
[369083339,1751461850889,-460.0,0.00032876,12]
[369083340,1751461850900,-460.0,0.00032876,12]
[369083341,1751461850910,-2685.38,0.00032876,12]
[369083342,1751461850922,-460.0,0.00032876,12]
[369083343,1751461850932,-5750.28,0.00032876,12]
[369083344,1751461850942,-460.0,0.00032876,12]
[369083345,1751461850952,-1639.62,0.00032876,12]
[369083346,1751461850962,-460.0,0.00032876,12]
[369083347,1751461850972,-460.0,0.00032876,12]
[369083348,1751461850983,-460.0,0.00032876,12]
[369083349,1751461850993,-460.0,0.00032876,12]
[369083350,1751461851003,-2717.33,0.00032876,12]
[369083351,1751461851014,-759.97,0.00032876,12]
[369083352,1751461851024,-492.20160503,0.00032876,12]
[369083353,1751461851034,-3117.8,0.00032876,12]
[369083354,1751461851045,-1623.92,0.00032876,12]
[369083355,1751461851056,-460.0,0.00032876,12]
[369083356,1751461851074,-722.87,0.00032876,12]
[369083357,1751461851084,-495.41768834,0.00032876,12]
[369083358,1751461851095,-2244.04,0.00032876,12]
[369083359,1751461851105,-996.72,0.00032876,12]
[369083360,1751461851116,-1089.24,0.00032876,12]
[369083361,1751461851126,-460.0,0.00032876,12]
[369083362,1751461851136,-2077.98,0.00032876,12]
[369083363,1751461851146,-5002.01,0.00032876,12]
[369083364,1751461851156,-460.0,0.00032876,12]
[369083365,1751461851166,-460.0,0.00032876,12]
[369083366,1751461851176,-460.0,0.00032876,12]
[369083367,1751461851186,-460.0,0.00032876,12]
[369083368,1751461851196,-460.0,0.00032876,12]
[369083369,1751461851206,-460.0,0.00032876,12]
[369083370,1751461851216,-492.82526873,0.00032876,12]
[369083371,1751461851226,-1450.37,0.00032876,12]
[369083372,1751461851235,-514.45634747,0.00032876,12]
[369083373,1751461851248,-1124.72,0.00032876,12]
[369083374,1751461851258,-1083.75,0.00032876,12]
[369083375,1751461851268,-460.0,0.00032876,12]
[369083376,1751461851278,-460.0,0.00032876,12]
[369083377,1751461851288,-490.0,0.00032876,12]
[369083378,1751461851298,-2758.03,0.00032876,12]
[369083379,1751461851309,-16881.97,0.00032876,12]
[369083380,1751461851319,-611.29,0.00032876,12]
[369083381,1751461851329,-4170.4,0.00032876,12]
[369083382,1751461851339,-460.0,0.00032876,12]
[369083383,1751461851349,-460.0,0.00032876,12]
[369083384,1751461851359,-1172.96,0.00032876,12]
[369083385,1751461851370,-460.0,0.00032876,12]
[369083386,1751461851380,-460.0,0.00032876,12]
[369083387,1751461851390,-460.0,0.00032876,12]
[369083388,1751461851400,-1480.19,0.00032876,12]
[369083389,1751461851411,-460.0,0.00032876,12]
[369083390,1751461851420,-460.0,0.00032876,12]
[369083391,1751461851430,-460.0,0.00032876,12]
[369083392,1751461851440,-460.0,0.00032876,12]
[369083393,1751461851451,-460.0,0.00032876,12]
[369083394,1751461851461,-460.0,0.00032876,12]
[369083395,1751461851470,-490.0,0.00032876,12]
[369083396,1751461851481,-1743.45,0.00032876,12]
[369083397,1751461851491,-460.0,0.00032876,12]
[369083398,1751461851501,-605.97893446,0.00032876,12]
[369083399,1751461851511,-585.92,0.00032876,12]
[369083400,1751461851521,-982.01,0.00032876,12]
[369083401,1751461851531,-1155.05,0.00032876,12]
[369083402,1751461851541,-1467.16,0.00032876,12]
[369083403,1751461851551,-460.0,0.00032876,12]
[369083404,1751461851561,-554.93,0.00032876,12]
[369083405,1751461851571,-785.12,0.00032876,12]
[369083406,1751461851581,-496.8,0.00032876,12]
[369083407,1751461851590,-460.0,0.00032876,12]
[369083408,1751461851600,-460.0,0.00032876,12]
[369083409,1751461851610,-460.0,0.00032876,12]
[369083410,1751461851619,-916.28,0.00032876,12]
[369083411,1751461851629,-7273.92,0.00032876,12]
[369083412,1751461851638,-460.0,0.00032876,12]
[369083413,1751461851648,-334.45,0.00032877,2]
[369083414,1751461851658,-150.0,0.00032877,2]
[369083415,1751461851668,-1642.00298204,0.00032886,2]
[369083416,1751461851679,-1000.0,0.00032893,7]
[369083417,1751461851689,-1000.0,0.00032893,7]
[369083418,1751461851699,-9857.48,0.000329,4]
[369083419,1751461851710,-1642.00298204,0.00032901,2]
[369083420,1751461851720,-1642.00298204,0.00032915,2]
[369083421,1751461851730,-1642.00298204,0.0003293,2]
[369083422,1751461851739,-1642.00298204,0.00032945,2]
[369083423,1751461851750,-661.36828034,0.00032951,2]
[369083424,1751461851760,-1642.00298204,0.0003296,2]
[369083425,1751461851771,-2678.51469,0.00032967,16]
[369083426,1751461851781,-1642.00298204,0.00032975,2]
[369083427,1751461851792,-1642.00298204,0.0003299,2]
[369083428,1751461851803,-381.832439,0.00033,14]
[369083429,1751461851812,-1642.00298204,0.00033005,2]
[369083430,1751461851822,-1642.00298204,0.0003302,2]
[369083431,1751461851832,-150.0,0.00033022,2]
[369083432,1751461852114,-1000.0,0.0003303,7]
[369083433,1751461852139,-1000.0,0.0003303,7]
[369083434,1751461852149,-1642.00298204,0.00033035,2]
[369083435,1751461852158,-374.0,0.00033037,5]
[369083436,1751461852167,-661.36828034,0.00033043,2]
[369083437,1751461852177,-1642.00298204,0.0003305,2]
[369083438,1751461852187,-150.0,0.00033092,2]
[369083439,1751461852198,-396.39,0.00033117,2]
[369083440,1751461852208,-661.36828034,0.00033136,2]
[369083441,1751461852218,-151.0,0.0003314,7]
[369083442,1751461852229,-151.0,0.0003314,7]
[369083443,1751461852241,-500.0,0.00033149,12]
[369083444,1751461852251,-311.58,0.00033149,12]
[369083445,1751461852260,-500.0,0.0003315,2]
[369083446,1751461852270,-445.0,0.0003315,2]
[369083447,1751461852280,-770.87,0.0003315,12]
[369083448,1751461852290,-580.0,0.0003315,12]
[369083449,1751461852301,-460.0,0.0003315,12]
[369083450,1751461852311,-460.0,0.0003315,12]
[369083451,1751461852320,-460.0,0.0003315,12]
[369083452,1751461852330,-580.0,0.0003315,12]
[369083453,1751461852340,-460.0,0.0003315,12]
[369083454,1751461852350,-222.64314114,0.0003315,12]
[369083455,1751461852359,-460.0,0.0003315,12]
[369083456,1751461852369,-1000.0,0.0003315,12]
[369083457,1751461852379,-460.0,0.0003315,12]
[369083458,1751461852389,-460.0,0.0003315,12]
[369083459,1751461852398,-460.0,0.0003315,12]
[369083460,1751461852408,-460.0,0.0003315,12]
[369083461,1751461852418,-460.0,0.0003315,12]
[369083462,1751461852427,-460.0,0.0003315,12]
[369083463,1751461852436,-508.39115043,0.0003315,12]
[369083464,1751461852447,-460.0,0.0003315,12]
[369083465,1751461852456,-460.0,0.0003315,12]
[369083466,1751461852466,-460.0,0.0003315,12]
[369083467,1751461852475,-460.0,0.0003315,12]
[369083468,1751461852485,-460.0,0.0003315,12]
[369083469,1751461852494,-460.0,0.0003315,12]
[369083470,1751461852504,-460.0,0.0003315,12]
[369083471,1751461852514,-460.0,0.0003315,12]
[369083472,1751461852524,-460.0,0.0003315,12]
[369083473,1751461852534,-460.0,0.0003315,12]
[369083474,1751461852544,-460.0,0.0003315,12]
[369083475,1751461852553,-550.0,0.0003315,12]
[369083476,1751461852563,-460.0,0.0003315,12]
[369083477,1751461852572,-460.0,0.0003315,12]
[369083478,1751461852582,-460.0,0.0003315,12]
[369083479,1751461852591,-460.0,0.0003315,12]
[369083480,1751461852601,-460.0,0.0003315,12]
[369083481,1751461852610,-460.0,0.0003315,12]
[369083482,1751461852620,-460.0,0.0003315,12]
[369083483,1751461852629,-460.0,0.0003315,12]
[369083484,1751461852639,-460.0,0.0003315,12]
[369083485,1751461852648,-460.0,0.0003315,12]
[369083486,1751461852657,-520.0,0.0003315,12]
[369083487,1751461852667,-460.0,0.0003315,12]
[369083488,1751461852677,-460.0,0.0003315,12]
[369083489,1751461852687,-460.0,0.0003315,12]
[369083490,1751461852696,-460.0,0.0003315,12]
[369083491,1751461852706,-550.0,0.0003315,12]
[369083492,1751461852715,-460.0,0.0003315,12]
[369083493,1751461852725,-460.0,0.0003315,12]
[369083494,1751461852735,-520.0,0.0003315,12]
[369083495,1751461852744,-460.0,0.0003315,12]
[369083496,1751461852754,-460.0,0.0003315,12]
[369083497,1751461852764,-460.0,0.0003315,12]
[369083498,1751461852774,-460.0,0.0003315,12]
[369083499,1751461852783,-520.0,0.0003315,12]
[369083500,1751461852793,-460.0,0.0003315,12]
[369083501,1751461852803,-460.0,0.0003315,12]
[369083502,1751461852813,-558.5,0.0003315,12]
[369083503,1751461852822,-460.0,0.0003315,12]
[369083504,1751461852832,-460.0,0.0003315,12]
[369083505,1751461852841,-460.0,0.0003315,12]
[369083506,1751461852850,-460.0,0.0003315,12]
[369083507,1751461852860,-460.0,0.0003315,12]
[369083508,1751461852871,-520.0,0.0003315,12]
[369083509,1751461852886,-520.0,0.0003315,12]
[369083510,1751461852896,-508.78,0.0003315,12]
[369083511,1751461852905,-546.20958926,0.0003315,12]
[369083512,1751461852916,-460.0,0.0003315,12]
[369083513,1751461852926,-523.93692488,0.0003315,12]
[369083514,1751461852935,-460.0,0.0003315,12]
[369083515,1751461852946,-551.88387733,0.0003315,12]
[369083516,1751461852957,-460.0,0.0003315,12]
[369083517,1751461852968,-460.0,0.0003315,12]
[369083518,1751461852978,-460.0,0.0003315,12]
[369083519,1751461852987,-588.0,0.0003315,12]
[369083520,1751461852997,-460.0,0.0003315,12]
[369083521,1751461853008,-460.0,0.0003315,12]
[369083522,1751461853018,-520.0,0.0003315,12]
[369083523,1751461853028,-460.0,0.0003315,12]
[369083524,1751461853038,-551.28639655,0.0003315,12]
[369083525,1751461853047,-460.0,0.0003315,12]
[369083526,1751461853057,-460.0,0.0003315,12]
[369083527,1751461853067,-460.0,0.0003315,12]
[369083528,1751461853076,-460.0,0.0003315,12]
[369083529,1751461853085,-460.0,0.0003315,12]
[369083530,1751461853095,-460.0,0.0003315,12]
[369083531,1751461853104,-460.0,0.0003315,12]
[369083532,1751461853114,-460.0,0.0003315,12]
[369083533,1751461853124,-460.0,0.0003315,12]
[369083534,1751461853133,-460.0,0.0003315,12]
[369083535,1751461853143,-557.36230943,0.0003315,12]
[369083536,1751461853153,-460.0,0.0003315,12]
[369083537,1751461853163,-460.0,0.0003315,12]
[369083538,1751461853172,-460.0,0.0003315,12]
[369083539,1751461853182,-460.0,0.0003315,12]
[369083540,1751461853191,-460.0,0.0003315,12]
[369083541,1751461853201,-651.92,0.0003315,12]
[369083542,1751461853211,-521.62860409,0.0003315,12]
[369083543,1751461853219,-591.86949796,0.0003315,12]
[369083544,1751461853229,-520.0,0.0003315,12]
[369083545,1751461853239,-460.0,0.0003315,12]
[369083546,1751461853248,-460.0,0.0003315,12]
[369083547,1751461853258,-460.0,0.0003315,12]
[369083548,1751461853267,-460.0,0.0003315,12]
[369083549,1751461853277,-460.0,0.0003315,12]
[369083550,1751461853286,-460.0,0.0003315,12]
[369083551,1751461853296,-520.0,0.0003315,12]
[369083552,1751461853305,-522.55605072,0.0003315,12]
[369083553,1751461853314,-460.0,0.0003315,12]
[369083554,1751461853324,-460.0,0.0003315,12]
[369083555,1751461853333,-460.0,0.0003315,12]
[369083556,1751461853342,-520.0,0.0003315,12]
[369083557,1751461853352,-460.0,0.0003315,12]
[369083558,1751461853361,-460.0,0.0003315,12]
[369083559,1751461853371,-460.0,0.0003315,12]
[369083560,1751461853381,-561.2,0.0003315,12]
[369083561,1751461853391,-520.0,0.0003315,12]
[369083562,1751461853401,-460.0,0.0003315,12]
[369083563,1751461853410,-805.92,0.0003315,12]
[369083564,1751461853419,-493.88,0.0003315,12]
[369083565,1751461853428,-460.0,0.0003315,7]
[369083566,1751461853438,-460.0,0.0003315,12]
[369083567,1751461853447,-460.0,0.0003315,12]
[369083568,1751461853457,-460.0,0.0003315,12]
[369083569,1751461853466,-460.0,0.0003315,12]
[369083570,1751461853475,-460.0,0.0003315,12]
[369083571,1751461853485,-460.0,0.0003315,12]
[369083572,1751461853494,-460.0,0.0003315,12]
[369083573,1751461853504,-520.0,0.0003315,12]
[369083574,1751461853513,-520.0,0.0003315,12]
[369083575,1751461853523,-460.0,0.0003315,12]
[369083576,1751461853532,-520.0,0.0003315,12]
[369083577,1751461853542,-460.0,0.0003315,12]
[369083578,1751461853552,-460.0,0.0003315,12]
[369083579,1751461853561,-460.0,0.0003315,12]
[369083580,1751461853570,-460.0,0.0003315,12]
[369083581,1751461853579,-460.0,0.0003315,12]
[369083582,1751461853589,-520.0,0.0003315,12]
[369083583,1751461853598,-780.1,0.0003315,12]
[369083584,1751461853608,-520.0,0.0003315,12]
[369083585,1751461853617,-460.0,0.0003315,12]
[369083586,1751461853626,-460.0,0.0003315,12]
[369083587,1751461853635,-460.0,0.0003315,12]
[369083588,1751461853644,-460.0,0.0003315,12]
[369083589,1751461853654,-460.0,0.0003315,12]
[369083590,1751461853663,-520.0,0.0003315,12]
[369083591,1751461853672,-551.68982797,0.0003315,12]
[369083592,1751461853682,-460.0,0.0003315,12]
[369083593,1751461853691,-520.0,0.0003315,12]
[369083594,1751461853701,-460.0,0.0003315,12]
[369083595,1751461853711,-460.0,0.0003315,12]
[369083596,1751461853720,-460.0,0.0003315,12]
[369083597,1751461853730,-568.51529388,0.0003315,12]
[369083598,1751461853739,-460.0,0.0003315,12]
[369083599,1751461853749,-569.12,0.0003315,12]
[369083600,1751461853759,-460.0,0.0003315,12]
[369083601,1751461853769,-460.0,0.0003315,12]
[369083602,1751461853779,-520.90161288,0.0003315,12]
[369083603,1751461853788,-2227.15,0.0003315,12]
[369083604,1751461853798,-520.0,0.0003315,12]
[369083605,1751461853807,-460.0,0.0003315,12]
[369083606,1751461853816,-460.0,0.0003315,12]
[369083607,1751461853826,-520.0,0.0003315,12]
[369083608,1751461853835,-460.0,0.0003315,12]
[369083609,1751461853845,-460.0,0.0003315,12]
[369083610,1751461853854,-468.54,0.0003315,12]
[369083611,1751461853864,-460.0,0.0003315,12]
[369083612,1751461853875,-460.0,0.0003315,12]
[369083613,1751461853886,-593.14,0.0003315,12]
[369083614,1751461853896,-460.0,0.0003315,12]
[369083615,1751461853907,-460.0,0.0003315,12]
[369083616,1751461853917,-460.0,0.0003315,12]
[369083617,1751461853927,-460.0,0.0003315,12]
[369083618,1751461853937,-460.0,0.0003315,12]
[369083619,1751461853948,-334.09,0.0003315,12]
[369083620,1751461853958,-460.0,0.0003315,12]
[369083621,1751461853968,-460.0,0.0003315,12]
[369083622,1751461853978,-460.0,0.0003315,12]
[369083623,1751461853987,-520.0,0.0003315,12]
[369083624,1751461853997,-460.0,0.0003315,12]
[369083625,1751461854006,-327.21030412,0.0003315,12]
[369083626,1751461854016,-474.82,0.0003315,12]
[369083627,1751461854026,-1133.38,0.0003315,12]
[369083628,1751461854035,-460.0,0.0003315,7]
[369083629,1751461854045,-460.0,0.0003315,12]
[369083630,1751461854055,-460.0,0.0003315,12]
[369083631,1751461854064,-202.19066942,0.0003315,12]
[369083632,1751461854073,-460.0,0.0003315,12]
[369083633,1751461854083,-894.84,0.0003315,12]
[369083634,1751461854092,-460.0,0.0003315,12]
[369083635,1751461854102,-533.64,0.0003315,12]
[369083636,1751461854112,-460.0,0.0003315,12]
[369083637,1751461854121,-2289.32,0.0003315,12]
[369083638,1751461854131,-481.50533755,0.0003315,12]
[369083639,1751461854140,-520.0,0.0003315,12]
[369083640,1751461854149,-552.67,0.0003315,12]
[369083641,1751461854159,-726.41,0.0003315,12]
[369083642,1751461854168,-460.0,0.0003315,12]
[369083643,1751461854177,-460.0,0.0003315,12]
[369083644,1751461854187,-2409.68,0.0003315,12]
[369083645,1751461854196,-460.0,0.0003315,12]
[369083646,1751461854205,-520.0,0.0003315,12]
[369083647,1751461854214,-460.0,0.0003315,12]
[369083648,1751461854224,-550.0,0.0003315,12]
[369083649,1751461854233,-460.0,0.0003315,12]
[369083650,1751461854243,-460.0,0.0003315,12]
[369083651,1751461854252,-550.0,0.0003315,12]
[369083652,1751461854261,-460.0,0.0003315,12]
[369083653,1751461854271,-460.0,0.0003315,12]
[369083654,1751461854280,-460.0,0.0003315,12]
[369083655,1751461854289,-460.0,0.0003315,12]
[369083656,1751461854299,-460.0,0.0003315,12]
[369083657,1751461854308,-460.0,0.0003315,12]
[369083658,1751461854318,-1285.53,0.0003315,12]
[369083659,1751461854327,-460.0,0.0003315,12]
[369083660,1751461854337,-274.61767257,0.0003315,12]
[369083661,1751461854346,-520.0,0.0003315,12]
[369083662,1751461854356,-460.0,0.0003315,12]
[369083663,1751461854366,-460.0,0.0003315,12]
[369083664,1751461854375,-460.0,0.0003315,12]
[369083665,1751461854384,-460.0,0.0003315,12]
[369083666,1751461854394,-460.0,0.0003315,12]
[369083667,1751461854404,-1773.86,0.0003315,12]
[369083668,1751461854414,-460.0,0.0003315,12]
[369083669,1751461854503,-460.0,0.0003315,12]
[369083670,1751461854513,-953.08,0.0003315,12]
[369083671,1751461854522,-460.0,0.0003315,12]
[369083672,1751461854532,-460.0,0.0003315,12]
[369083673,1751461854541,-460.0,0.0003315,12]
[369083674,1751461854551,-460.0,0.0003315,12]
[369083675,1751461854560,-460.0,0.0003315,12]
[369083676,1751461854569,-336.34651089,0.0003315,12]
[369083677,1751461854578,-888.96,0.0003315,12]
[369083678,1751461854587,-460.0,0.0003315,12]
[369083679,1751461854596,-460.0,0.0003315,12]
[369083680,1751461854606,-460.0,0.0003315,12]
[369083681,1751461854616,-460.0,0.0003315,12]
[369083682,1751461854626,-460.0,0.0003315,12]
[369083683,1751461854635,-460.0,0.0003315,12]
[369083684,1751461854644,-460.0,0.0003315,12]
[369083685,1751461854654,-460.0,0.0003315,12]
[369083686,1751461854664,-460.0,0.0003315,12]
[369083687,1751461854673,-460.0,0.0003315,12]
[369083688,1751461854683,-460.0,0.0003315,12]
[369083689,1751461854692,-151.0,0.0003315,7]
[369083690,1751461854701,-151.0,0.0003315,7]
[369083691,1751461854711,-151.0,0.0003315,7]
[369083692,1751461854720,-773.32,0.0003315,12]
[369083693,1751461854730,-529.26,0.0003315,12]
[369083694,1751461854739,-151.0,0.0003315,7]
[369083695,1751461854748,-1156.67,0.0003315,12]
[369083696,1751461854759,-285.216661,0.0003315,7]
[369083697,1751461854768,-460.0,0.0003315,12]
[369083698,1751461854778,-1283.75,0.0003315,12]
[369083699,1751461854787,-794.05,0.0003315,12]
[369083700,1751461854797,-424.48765939,0.0003315,12]
[369083701,1751461854807,-460.0,0.0003315,12]
[369083702,1751461854816,-460.0,0.0003315,12]
[369083703,1751461854825,-460.0,0.0003315,12]
[369083704,1751461854835,-538.74,0.0003315,12]
[369083705,1751461854844,-460.0,0.0003315,12]
[369083706,1751461854854,-460.0,0.0003315,12]
[369083707,1751461854863,-460.0,0.0003315,12]
[369083708,1751461854873,-460.0,0.0003315,12]
[369083709,1751461854885,-460.0,0.0003315,12]
[369083710,1751461854895,-460.0,0.0003315,12]
[369083711,1751461854904,-460.0,0.0003315,12]
[369083712,1751461854913,-550.0,0.0003315,12]
[369083713,1751461854923,-460.0,0.0003315,12]
[369083714,1751461854933,-417.72723912,0.0003315,12]
[369083715,1751461854942,-460.0,0.0003315,12]
[369083716,1751461854954,-573.5,0.0003315,12]
[369083717,1751461854963,-460.0,0.0003315,12]
[369083718,1751461854973,-460.0,0.0003315,12]
[369083719,1751461854982,-460.0,0.0003315,12]
[369083720,1751461854992,-460.0,0.0003315,12]
[369083721,1751461855001,-460.0,0.0003315,12]
[369083722,1751461855010,-576.5,0.0003315,12]
[369083723,1751461855019,-508.31,0.0003315,12]
[369083724,1751461855029,-2068.42,0.0003315,12]
[369083725,1751461855038,-460.0,0.0003315,12]
[369083726,1751461855048,-460.0,0.0003315,12]
[369083727,1751461855058,-460.0,0.0003315,12]
[369083728,1751461855067,-550.0,0.0003315,12]
[369083729,1751461855076,-460.0,0.0003315,12]
[369083730,1751461855086,-460.0,0.0003315,12]
[369083731,1751461855095,-460.0,0.0003315,12]
[369083732,1751461855105,-531.10324744,0.0003315,12]
[369083733,1751461855114,-460.0,0.0003315,12]
[369083734,1751461855124,-460.0,0.0003315,12]
[369083735,1751461855133,-460.0,0.0003315,12]
[369083736,1751461855143,-460.0,0.0003315,12]
[369083737,1751461855152,-944.75,0.0003315,12]
[369083738,1751461855161,-550.0,0.0003315,12]
[369083739,1751461855171,-460.0,0.0003315,12]
[369083740,1751461855179,-460.0,0.0003315,12]
[369083741,1751461855189,-550.0,0.0003315,12]
[369083742,1751461855198,-885.08,0.0003315,12]
[369083743,1751461855207,-460.0,0.0003315,12]
[369083744,1751461855216,-460.0,0.0003315,12]
[369083745,1751461855225,-461.44,0.0003315,12]
[369083746,1751461855234,-1201.63,0.0003315,12]
[369083747,1751461855244,-460.0,0.0003315,12]
[369083748,1751461855254,-460.0,0.0003315,12]
[369083749,1751461855265,-460.0,0.0003315,12]
[369083750,1751461855276,-1504.69,0.0003315,12]
[369083751,1751461855286,-460.0,0.0003315,12]
[369083752,1751461855295,-460.0,0.0003315,12]
[369083753,1751461855305,-460.0,0.0003315,12]
[369083754,1751461855315,-460.0,0.0003315,12]
[369083755,1751461855324,-460.0,0.0003315,12]
[369083756,1751461855333,-460.0,0.0003315,12]
[369083757,1751461855343,-460.0,0.0003315,12]
[369083758,1751461855353,-460.0,0.0003315,12]
[369083759,1751461855362,-460.0,0.0003315,12]
[369083760,1751461855371,-460.0,0.0003315,12]
[369083761,1751461855380,-460.0,0.0003315,12]
[369083762,1751461855390,-463.86,0.0003315,12]
[369083763,1751461855399,-550.0,0.0003315,12]
[369083764,1751461855409,-460.0,0.0003315,12]
[369083765,1751461855418,-460.0,0.0003315,12]
[369083766,1751461855428,-550.0,0.0003315,12]
[369083767,1751461855437,-460.0,0.0003315,12]
[369083768,1751461855446,-460.0,0.0003315,12]
[369083769,1751461855455,-1589.24,0.0003315,12]
[369083770,1751461855464,-460.0,0.0003315,12]
[369083771,1751461855473,-460.0,0.0003315,12]
[369083772,1751461855483,-460.0,0.0003315,12]
[369083773,1751461855492,-460.0,0.0003315,12]
[369083774,1751461855502,-709.02,0.0003315,12]
[369083775,1751461855510,-460.0,0.0003315,12]
[369083776,1751461855520,-550.0,0.0003315,12]
[369083777,1751461855529,-769.67,0.0003315,12]
[369083778,1751461855538,-460.0,0.0003315,12]
[369083779,1751461855548,-460.0,0.0003315,12]
[369083780,1751461855557,-460.0,0.0003315,12]
[369083781,1751461855566,-475.07,0.0003315,12]
[369083782,1751461855575,-4599.47,0.0003315,12]
[369083783,1751461855585,-460.0,0.0003315,12]
[369083784,1751461855594,-539.21,0.0003315,12]
[369083785,1751461855603,-914.53,0.0003315,12]
[369083786,1751461855612,-460.0,0.0003315,12]
[369083787,1751461855621,-460.0,0.0003315,12]
[369083788,1751461855631,-460.0,0.0003315,12]
[369083789,1751461855640,-426.32152454,0.0003315,12]
[369083790,1751461855650,-887.47,0.0003315,12]
[369083791,1751461855659,-527.88,0.0003315,12]
[369083792,1751461855669,-460.0,0.0003315,12]
[369083793,1751461855678,-1036.46,0.0003315,12]
[369083794,1751461855687,-524.20253026,0.0003315,12]
[369083795,1751461855696,-460.0,0.0003315,12]
[369083796,1751461855705,-460.0,0.0003315,12]
[369083797,1751461855714,-460.0,0.0003315,12]
[369083798,1751461855723,-460.0,0.0003315,12]
[369083799,1751461855733,-460.0,0.0003315,12]
[369083800,1751461855743,-460.0,0.0003315,12]
[369083801,1751461855753,-589.74,0.0003315,12]
[369083802,1751461855762,-460.0,0.0003315,12]
[369083803,1751461855771,-562.15,0.0003315,12]
[369083804,1751461855780,-158.5058232,0.0003315,12]
[369083805,1751461855790,-460.0,0.0003315,12]
[369083806,1751461855799,-938.24,0.0003315,12]
[369083807,1751461855808,-460.0,0.0003315,12]
[369083808,1751461855818,-553.60549208,0.0003315,12]
[369083809,1751461855827,-1313.27,0.0003315,12]
[369083810,1751461855836,-460.0,0.0003315,12]
[369083811,1751461855846,-550.0,0.0003315,12]
[369083812,1751461855855,-572.68343284,0.0003315,12]
[369083813,1751461855864,-460.0,0.0003315,12]
[369083814,1751461855874,-460.0,0.0003315,12]
[369083815,1751461855887,-402.33,0.0003315,12]